[Event "Early-Titled-Tuesday-Blitz-February-13-2024"]
[Site "Chess.com"]
[Date "2024.02.13"]
[Round "1"]
[White "emeli_chess"]
[Black "luckyswitchback"]
[Result "1-0"]
[WhiteElo "2375"]
[BlackElo "2673"]
[TimeControl "180+1"]
[EndTime "8:08:25 PST"]
[Termination "emeli_chess won on time"]

1. d4 {[%clk 0:03:00.9]} 1... d5 {[%clk 0:02:58.6]} 2. c4 {[%clk 0:03:00.2]}
2... e6 {[%clk 0:02:58.7]} 3. Nc3 {[%clk 0:03:00.4]} 3... c6 {[%clk 0:02:59.1]}
4. e3 {[%clk 0:03:00]} 4... Nf6 {[%clk 0:02:56.9]} 5. Nf3 {[%clk 0:02:59.4]}
5... Nbd7 {[%clk 0:02:55.7]} 6. Bd3 {[%clk 0:02:59.4]} 6... dxc4 {[%clk
0:02:55.4]} 7. Bxc4 {[%clk 0:02:59.6]} 7... b5 {[%clk 0:02:55.8]} 8. Bd3 {[%clk
0:02:59.8]} 8... Bb7 {[%clk 0:02:51.6]} 9. O-O {[%clk 0:02:58.9]} 9... a6 {[%clk
0:02:48.5]} 10. e4 {[%clk 0:02:58.3]} 10... c5 {[%clk 0:02:47.8]} 11. d5 {[%clk
0:02:57.8]} 11... Qc7 {[%clk 0:02:38.9]} 12. Bc2 {[%clk 0:02:40.4]} 12... Bd6
{[%clk 0:02:23.3]} 13. dxe6 {[%clk 0:02:22.9]} 13... fxe6 {[%clk 0:02:23.4]} 14.
Ng5 {[%clk 0:02:21.7]} 14... Bxh2+ {[%clk 0:01:58.6]} 15. Kh1 {[%clk 0:02:21.4]}
15... Qd6 {[%clk 0:01:59.1]} 16. f4 {[%clk 0:02:11.1]} 16... Qxd1 {[%clk
0:01:55.2]} 17. Rxd1 {[%clk 0:02:09.8]} 17... Bg3 {[%clk 0:01:54.1]} 18. Nxe6
{[%clk 0:02:09.2]} 18... Kf7 {[%clk 0:01:42.1]} 19. Ng5+ {[%clk 0:02:06.5]}
19... Ke7 {[%clk 0:01:42.1]} 20. e5 {[%clk 0:01:42.2]} 20... Ng4 {[%clk
0:01:37.3]} 21. Rxd7+ {[%clk 0:01:41.7]} 21... Kxd7 {[%clk 0:01:30.8]} 22. Bf5+
{[%clk 0:01:41.8]} 22... Kc7 {[%clk 0:01:31.2]} 23. Bxg4 {[%clk 0:01:41.9]}
23... h6 {[%clk 0:01:22.3]} 24. Nge4 {[%clk 0:01:37.6]} 24... h5 {[%clk
0:00:54.9]} 25. Bf3 {[%clk 0:01:35]} 25... h4 {[%clk 0:00:54.4]} 26. Nxc5 {[%clk
0:01:30.8]} 26... Bxf3 {[%clk 0:00:50.6]} 27. gxf3 {[%clk 0:01:30.6]} 27... Kc6
{[%clk 0:00:46.9]} 28. N5e4 {[%clk 0:01:29.3]} 28... Rad8 {[%clk 0:00:43.2]} 29.
Kg2 {[%clk 0:01:24.2]} 29... h3+ {[%clk 0:00:25.9]} 30. Kxg3 {[%clk 0:01:12.5]}
30... h2 {[%clk 0:00:25.4]} 31. Be3 {[%clk 0:01:12.6]} 31... h1=Q {[%clk
0:00:24.7]} 32. Rxh1 {[%clk 0:01:12.1]} 32... Rxh1 {[%clk 0:00:25.6]} 33. Nd6
{[%clk 0:01:03]} 33... b4 {[%clk 0:00:21.9]} 34. Nce4 {[%clk 0:01:02.3]} 34...
Ra1 {[%clk 0:00:18.6]} 35. a3 {[%clk 0:00:59.2]} 35... bxa3 {[%clk 0:00:18.4]}
36. bxa3 {[%clk 0:00:58.8]} 36... Rxa3 {[%clk 0:00:19.3]} 37. Bb6 {[%clk
0:00:46.2]} 37... Kxb6 {[%clk 0:00:11.3]} 38. Nc4+ {[%clk 0:00:45.7]} 38... Kb5
{[%clk 0:00:10.9]} 39. Nxa3+ {[%clk 0:00:45.9]} 39... Kb4 {[%clk 0:00:11.4]} 40.
Nc2+ {[%clk 0:00:42.2]} 40... Kb3 {[%clk 0:00:11.6]} 41. Nc5+ {[%clk 0:00:40.4]}
41... Kxc2 {[%clk 0:00:11.1]} 42. Nxa6 {[%clk 0:00:40.5]} 42... Kc3 {[%clk
0:00:08.5]} 43. Nc5 {[%clk 0:00:38]} 43... Kc4 {[%clk 0:00:07.2]} 44. Ne6 {[%clk
0:00:37.8]} 44... Rd7 {[%clk 0:00:07.4]} 45. Kg4 {[%clk 0:00:35.5]} 45... Kd5
{[%clk 0:00:07.7]} 46. Ng5 {[%clk 0:00:26]} 46... g6 {[%clk 0:00:07.2]} 47. Ne4
{[%clk 0:00:25.5]} 47... Rf7 {[%clk 0:00:04.7]} 48. Nf6+ {[%clk 0:00:23.1]}
48... Ke6 {[%clk 0:00:04.3]} 49. Kg5 {[%clk 0:00:23.6]} 49... Rg7 {[%clk
0:00:03.7]} 50. Kh6 {[%clk 0:00:21.9]} 50... Rb7 {[%clk 0:00:01.9]} 51. Kxg6
{[%clk 0:00:22.2]} 51... Rb3 {[%clk 0:00:02.5]} 52. Ne4 {[%clk 0:00:18.6]} 52...
Re3 {[%clk 0:00:02.5]} 53. Ng5+ {[%clk 0:00:18.4]} 53... Kd5 {[%clk 0:00:02.5]}
54. Kf6 {[%clk 0:00:17.1]} 54... Re2 {[%clk 0:00:01.3]} 55. e6 {[%clk
0:00:16.7]} 55... Kd6 {[%clk 0:00:01.3]} 56. f5 {[%clk 0:00:16.6]} 1-0

[Event "Early-Titled-Tuesday-Blitz-February-13-2024"]
[Site "Chess.com"]
[Date "2024.02.13"]
[Round "1"]
[White "Sanan_Sjugirov"]
[Black "SHIVACalypso"]
[Result "1-0"]
[WhiteElo "2992"]
[BlackElo "2528"]
[TimeControl "180+1"]
[EndTime "8:08:31 PST"]
[Termination "Sanan_Sjugirov won by resignation"]

1. e4 {[%clk 0:03:00.9]} 1... e6 {[%clk 0:02:58.5]} 2. d4 {[%clk 0:03:00.7]}
2... d5 {[%clk 0:02:58.4]} 3. e5 {[%clk 0:03:01.1]} 3... c5 {[%clk 0:02:57.6]}
4. c3 {[%clk 0:03:01.7]} 4... Nc6 {[%clk 0:02:58.2]} 5. Nf3 {[%clk 0:02:58.5]}
5... Bd7 {[%clk 0:02:58.1]} 6. Be2 {[%clk 0:02:58.3]} 6... f6 {[%clk 0:02:56.8]}
7. O-O {[%clk 0:02:57.4]} 7... fxe5 {[%clk 0:02:56.2]} 8. dxe5 {[%clk
0:02:50.2]} 8... Nh6 {[%clk 0:02:53.5]} 9. Re1 {[%clk 0:02:45.4]} 9... Nf7
{[%clk 0:02:49.2]} 10. c4 {[%clk 0:02:14.1]} 10... d4 {[%clk 0:02:46.7]} 11.
Nbd2 {[%clk 0:02:05]} 11... Qc7 {[%clk 0:02:45.1]} 12. Ne4 {[%clk 0:02:02.4]}
12... Be7 {[%clk 0:02:28.3]} 13. Bf4 {[%clk 0:01:40.8]} 13... O-O {[%clk
0:02:25.9]} 14. Bg3 {[%clk 0:01:40.4]} 14... Nfxe5 {[%clk 0:02:14]} 15. Nxe5
{[%clk 0:01:40.4]} 15... Nxe5 {[%clk 0:02:14.9]} 16. Bd3 {[%clk 0:01:40.8]}
16... h6 {[%clk 0:01:56.4]} 17. Nxc5 {[%clk 0:01:30.5]} 17... Bxc5 {[%clk
0:01:55.9]} 18. Bxe5 {[%clk 0:01:28]} 18... Bd6 {[%clk 0:01:56.3]} 19. Qh5
{[%clk 0:01:16.1]} 19... Bxe5 {[%clk 0:01:45.7]} 20. Rxe5 {[%clk 0:01:15.2]}
20... Rf6 {[%clk 0:01:42.9]} 21. Rae1 {[%clk 0:01:12.7]} 21... Raf8 {[%clk
0:01:41.9]} 22. f3 {[%clk 0:01:13]} 22... Qb6 {[%clk 0:01:29.4]} 23. b3 {[%clk
0:01:11.6]} 23... Qb4 {[%clk 0:01:28.6]} 24. Qh4 {[%clk 0:01:02.9]} 24... Qc3
{[%clk 0:01:21.2]} 25. Rd1 {[%clk 0:01:01.1]} 25... Bc6 {[%clk 0:01:14.9]} 26.
Qe1 {[%clk 0:00:50.4]} 26... Qxe1+ {[%clk 0:00:52.3]} 27. Rdxe1 {[%clk
0:00:51.3]} 27... Kf7 {[%clk 0:00:49.1]} 28. h4 {[%clk 0:00:50.5]} 28... Rd8
{[%clk 0:00:49.6]} 29. Kf2 {[%clk 0:00:50.5]} 29... a6 {[%clk 0:00:46]} 30. b4
{[%clk 0:00:49.3]} 30... Rd6 {[%clk 0:00:35.4]} 31. a3 {[%clk 0:00:48.3]} 31...
Rf4 {[%clk 0:00:34.4]} 32. Kg3 {[%clk 0:00:47.9]} 32... Rf6 {[%clk 0:00:34.2]}
33. R1e2 {[%clk 0:00:43.1]} 33... Rd8 {[%clk 0:00:20.2]} 34. Kf2 {[%clk
0:00:41]} 34... Rd6 {[%clk 0:00:20.4]} 35. h5 {[%clk 0:00:38]} 35... Ke7 {[%clk
0:00:19.1]} 36. Re1 {[%clk 0:00:34.6]} 36... Rd8 {[%clk 0:00:18.6]} 37. Kg3
{[%clk 0:00:34.7]} 37... Kd6 {[%clk 0:00:19]} 38. R5e2 {[%clk 0:00:26.9]} 38...
Rdf8 {[%clk 0:00:18.5]} 39. Be4 {[%clk 0:00:21.6]} 39... Re8 {[%clk 0:00:14]}
40. Bg6 {[%clk 0:00:21]} 40... Ref8 {[%clk 0:00:13.1]} 41. Be4 {[%clk
0:00:21.7]} 41... Re8 {[%clk 0:00:13.1]} 42. Bxc6 {[%clk 0:00:20.9]} 42... bxc6
{[%clk 0:00:13.3]} 43. Re4 {[%clk 0:00:21.4]} 43... e5 {[%clk 0:00:13.3]} 44.
Rxd4+ {[%clk 0:00:20.3]} 44... exd4 {[%clk 0:00:12.4]} 45. Rxe8 {[%clk
0:00:21.2]} 45... c5 {[%clk 0:00:12.8]} 46. Rd8+ {[%clk 0:00:19.9]} 46... Kc7
{[%clk 0:00:12.8]} 47. Rd5 {[%clk 0:00:19.2]} 47... cxb4 {[%clk 0:00:10.7]} 48.
axb4 {[%clk 0:00:20.1]} 48... Rb6 {[%clk 0:00:11.2]} 49. b5 {[%clk 0:00:19.1]}
49... axb5 {[%clk 0:00:12.1]} 50. cxb5 {[%clk 0:00:19.3]} 50... d3 {[%clk
0:00:11.6]} 51. Rxd3 {[%clk 0:00:17.3]} 51... Rxb5 {[%clk 0:00:11.8]} 52. Kg4
{[%clk 0:00:17.9]} 52... Re5 {[%clk 0:00:10.7]} 53. f4 {[%clk 0:00:16.5]} 53...
Rc5 {[%clk 0:00:09]} 54. g3 {[%clk 0:00:15.8]} 54... Kc6 {[%clk 0:00:09.2]} 55.
Rd8 {[%clk 0:00:15.5]} 55... Kb6 {[%clk 0:00:06.6]} 56. Rg8 {[%clk 0:00:15.6]}
56... Rc7 {[%clk 0:00:06.8]} 57. Kf5 {[%clk 0:00:16.2]} 57... Kc6 {[%clk
0:00:06.1]} 58. Kg6 {[%clk 0:00:16.3]} 58... Kd6 {[%clk 0:00:06.6]} 59. Rxg7
{[%clk 0:00:16.7]} 59... Rc3 {[%clk 0:00:07]} 60. Kxh6 {[%clk 0:00:17]} 60...
Ke6 {[%clk 0:00:07.2]} 61. g4 {[%clk 0:00:15.9]} 61... Rc6 {[%clk 0:00:07.3]}
62. f5+ {[%clk 0:00:15.1]} 62... Kf6 {[%clk 0:00:07.3]} 63. Rg6+ {[%clk
0:00:15.3]} 1-0

[Event "Early-Titled-Tuesday-Blitz-February-13-2024"]
[Site "Chess.com"]
[Date "2024.02.13"]
[Round "1"]
[White "ViIIagra"]
[Black "malakismayil"]
[Result "1-0"]
[WhiteElo "2956"]
[BlackElo "2514"]
[TimeControl "180+1"]
[EndTime "8:08:33 PST"]
[Termination "ViIIagra won on time"]

1. g3 {[%clk 0:02:57.7]} 1... d5 {[%clk 0:02:59.8]} 2. Bg2 {[%clk 0:02:54.5]}
2... e6 {[%clk 0:03:00.7]} 3. f4 {[%clk 0:02:52]} 3... Nf6 {[%clk 0:03:01.1]} 4.
Nf3 {[%clk 0:02:52.4]} 4... Be7 {[%clk 0:03:01.8]} 5. O-O {[%clk 0:02:53.1]}
5... O-O {[%clk 0:03:02.5]} 6. d3 {[%clk 0:02:53.8]} 6... c5 {[%clk 0:03:03.2]}
7. Nc3 {[%clk 0:02:54.2]} 7... Nc6 {[%clk 0:03:03.9]} 8. e4 {[%clk 0:02:54.9]}
8... Rb8 {[%clk 0:03:01.4]} 9. Ne5 {[%clk 0:02:28.8]} 9... d4 {[%clk 0:02:45.4]}
10. Nxc6 {[%clk 0:02:27.1]} 10... bxc6 {[%clk 0:02:46.3]} 11. Na4 {[%clk
0:02:25.1]} 11... Ba6 {[%clk 0:02:28.8]} 12. b3 {[%clk 0:02:24.1]} 12... c4
{[%clk 0:02:21.9]} 13. dxc4 {[%clk 0:02:22.7]} 13... c5 {[%clk 0:02:22.4]} 14.
Nb2 {[%clk 0:02:21.6]} 14... Bb7 {[%clk 0:02:21.5]} 15. Re1 {[%clk 0:02:20.8]}
15... Nd7 {[%clk 0:02:16.8]} 16. Nd3 {[%clk 0:02:20.9]} 16... Qc7 {[%clk
0:02:16.8]} 17. Qe2 {[%clk 0:02:20.6]} 17... e5 {[%clk 0:02:15.6]} 18. Rf1
{[%clk 0:02:16.9]} 18... Bd6 {[%clk 0:02:14.2]} 19. f5 {[%clk 0:02:16]} 19... f6
{[%clk 0:02:13.1]} 20. g4 {[%clk 0:02:16.6]} 20... Be7 {[%clk 0:02:05.4]} 21. h4
{[%clk 0:02:16.7]} 21... Qd8 {[%clk 0:02:06.1]} 22. Bd2 {[%clk 0:02:13.9]} 22...
Bc6 {[%clk 0:02:00.1]} 23. Bf3 {[%clk 0:02:14.4]} 23... Nb6 {[%clk 0:01:55.3]}
24. Kh2 {[%clk 0:02:12.2]} 24... Kf7 {[%clk 0:01:54.9]} 25. g5 {[%clk
0:02:08.6]} 25... Ke8 {[%clk 0:01:55.3]} 26. gxf6 {[%clk 0:02:06.5]} 26... gxf6
{[%clk 0:01:55.9]} 27. Rg1 {[%clk 0:02:06.5]} 27... Kd7 {[%clk 0:01:52.1]} 28.
Rg7 {[%clk 0:02:06.6]} 28... Kc8 {[%clk 0:01:46.8]} 29. Rag1 {[%clk 0:02:06.5]}
29... Rh8 {[%clk 0:01:37.5]} 30. Ba5 {[%clk 0:02:05.9]} 30... Rb7 {[%clk
0:01:12.3]} 31. Bh5 {[%clk 0:02:01.9]} 31... Bf8 {[%clk 0:01:08.8]} 32. Rxb7
{[%clk 0:02:00]} 32... Kxb7 {[%clk 0:01:09.7]} 33. Bf7 {[%clk 0:01:59.7]} 33...
Qd6 {[%clk 0:01:00.9]} 34. Kh3 {[%clk 0:01:58.6]} 34... Bh6 {[%clk 0:00:53]} 35.
Bxb6 {[%clk 0:01:58.7]} 35... axb6 {[%clk 0:00:52.4]} 36. Bd5 {[%clk 0:01:57.9]}
36... Qe7 {[%clk 0:00:38.9]} 37. a4 {[%clk 0:01:52.2]} 37... Bxd5 {[%clk
0:00:37.5]} 38. cxd5 {[%clk 0:01:53.1]} 38... Be3 {[%clk 0:00:36.4]} 39. Rg2
{[%clk 0:01:52.6]} 39... Qf7 {[%clk 0:00:35.9]} 40. Qg4 {[%clk 0:01:51.7]} 40...
Bh6 {[%clk 0:00:33.9]} 41. Nb2 {[%clk 0:01:51.5]} 41... Rd8 {[%clk 0:00:30.3]}
42. Nc4 {[%clk 0:01:51.5]} 42... Kc7 {[%clk 0:00:31]} 43. Kh2 {[%clk 0:01:47.1]}
43... Kb7 {[%clk 0:00:29.8]} 44. Kg1 {[%clk 0:01:47.3]} 44... Kc7 {[%clk
0:00:29.9]} 45. Kf1 {[%clk 0:01:47]} 45... Ra8 {[%clk 0:00:29.7]} 46. Ke2 {[%clk
0:01:45.6]} 46... Re8 {[%clk 0:00:30.2]} 47. Na3 {[%clk 0:01:35.9]} 47... Ra8
{[%clk 0:00:27.9]} 48. Nb5+ {[%clk 0:01:35.8]} 48... Kd7 {[%clk 0:00:28.7]} 49.
Kf1 {[%clk 0:01:31.2]} 49... Rc8 {[%clk 0:00:28.4]} 50. Qe2 {[%clk 0:01:24.4]}
50... Ra8 {[%clk 0:00:28.4]} 51. Kg1 {[%clk 0:01:12.1]} 51... Rg8 {[%clk
0:00:19.8]} 52. Rxg8 {[%clk 0:01:02.5]} 52... Qxg8+ {[%clk 0:00:20.7]} 53. Qg2
{[%clk 0:01:03]} 53... Be3+ {[%clk 0:00:19.7]} 54. Kf1 {[%clk 0:01:03.1]} 54...
Qf7 {[%clk 0:00:20.6]} 55. Qg4 {[%clk 0:01:03.3]} 55... Bh6 {[%clk 0:00:15.6]}
56. Ke2 {[%clk 0:01:03]} 56... Be3 {[%clk 0:00:14.4]} 57. Na3 {[%clk 0:00:54.3]}
57... Bh6 {[%clk 0:00:13]} 58. Nc4 {[%clk 0:00:54.6]} 58... Kc7 {[%clk
0:00:13.7]} 59. Na3 {[%clk 0:00:39.6]} 59... Bf4 {[%clk 0:00:12.9]} 60. Kd3
{[%clk 0:00:40]} 60... Bh6 {[%clk 0:00:10.7]} 61. c3 {[%clk 0:00:39.6]} 61...
Bc1 {[%clk 0:00:09.6]} 62. Nb5+ {[%clk 0:00:38.8]} 62... Kd7 {[%clk 0:00:10]}
63. b4 {[%clk 0:00:37.3]} 63... dxc3 {[%clk 0:00:06.5]} 64. Kxc3 {[%clk
0:00:36.6]} 64... cxb4+ {[%clk 0:00:06.7]} 65. Kb3 {[%clk 0:00:35.4]} 65... Bf4
{[%clk 0:00:05.7]} 66. Qe2 {[%clk 0:00:35]} 66... Qg7 {[%clk 0:00:04.8]} 67. Qc2
{[%clk 0:00:32.1]} 67... Qg3+ {[%clk 0:00:05.2]} 68. Kxb4 {[%clk 0:00:32.6]}
68... Qe1+ {[%clk 0:00:04.7]} 69. Kb3 {[%clk 0:00:30]} 69... Qe3+ {[%clk
0:00:04.9]} 70. Qc3 {[%clk 0:00:30.3]} 70... Qxe4 {[%clk 0:00:03.7]} 71. Qc7+
{[%clk 0:00:30.4]} 1-0

[Event "Early-Titled-Tuesday-Blitz-February-13-2024"]
[Site "Chess.com"]
[Date "2024.02.13"]
[Round "1"]
[White "amiqu"]
[Black "lupta_robin"]
[Result "1/2-1/2"]
[WhiteElo "2050"]
[BlackElo "2557"]
[TimeControl "180+1"]
[EndTime "8:08:34 PST"]
[Termination "Game drawn by repetition"]

1. d4 {[%clk 0:03:00.9]} 1... Nf6 {[%clk 0:02:59.7]} 2. c4 {[%clk 0:02:58.7]}
2... e6 {[%clk 0:03:00.3]} 3. Nf3 {[%clk 0:02:57.9]} 3... Be7 {[%clk 0:03:00.8]}
4. g3 {[%clk 0:02:54.2]} 4... O-O {[%clk 0:03:01.3]} 5. Bg2 {[%clk 0:02:54.7]}
5... b6 {[%clk 0:02:56.6]} 6. O-O {[%clk 0:02:53.3]} 6... Bb7 {[%clk 0:02:57.2]}
7. Nc3 {[%clk 0:02:47.3]} 7... Ne4 {[%clk 0:02:43.7]} 8. Qc2 {[%clk 0:02:45.2]}
8... Nxc3 {[%clk 0:02:41.8]} 9. Qxc3 {[%clk 0:02:46.1]} 9... d6 {[%clk
0:02:37.1]} 10. Qd3 {[%clk 0:02:36.9]} 10... Nd7 {[%clk 0:02:25.2]} 11. Ng5
{[%clk 0:02:31.9]} 11... Bxg5 {[%clk 0:02:24.2]} 12. Bxb7 {[%clk 0:02:31.8]}
12... Rb8 {[%clk 0:02:24.5]} 13. Bc6 {[%clk 0:02:27]} 13... Bxc1 {[%clk
0:02:22.6]} 14. Raxc1 {[%clk 0:02:27.9]} 14... Nf6 {[%clk 0:02:15.5]} 15. Rfe1
{[%clk 0:02:24.5]} 15... e5 {[%clk 0:02:15.5]} 16. b4 {[%clk 0:01:55.5]} 16...
Qe7 {[%clk 0:02:07.7]} 17. dxe5 {[%clk 0:01:50.8]} 17... dxe5 {[%clk 0:02:06.8]}
18. Red1 {[%clk 0:01:43.3]} 18... Rfd8 {[%clk 0:02:06.7]} 19. Qc3 {[%clk
0:01:39.4]} 19... g6 {[%clk 0:01:54]} 20. a4 {[%clk 0:01:36.2]} 20... Kg7 {[%clk
0:01:53.7]} 21. h4 {[%clk 0:01:34.5]} 21... Rd6 {[%clk 0:01:53.6]} 22. b5 {[%clk
0:01:25.8]} 22... Rbd8 {[%clk 0:01:53.4]} 23. Rxd6 {[%clk 0:01:24.9]} 23... Qxd6
{[%clk 0:01:54.2]} 24. c5 {[%clk 0:01:22.6]} 24... Qd4 {[%clk 0:01:46.2]} 25.
cxb6 {[%clk 0:01:19.6]} 25... cxb6 {[%clk 0:01:39.6]} 26. e3 {[%clk 0:01:14.5]}
26... Qxc3 {[%clk 0:01:18.6]} 27. Rxc3 {[%clk 0:01:13.1]} 27... Rd2 {[%clk
0:01:18]} 28. Bf3 {[%clk 0:00:26.3]} 28... e4 {[%clk 0:01:06]} 29. Bg2 {[%clk
0:00:26.1]} 29... Ng4 {[%clk 0:00:42.7]} 30. Bxe4 {[%clk 0:00:25.4]} 30... Nxf2
{[%clk 0:00:43.2]} 31. Bg2 {[%clk 0:00:20.5]} 31... Ng4 {[%clk 0:00:40.7]} 32.
Bf3 {[%clk 0:00:17.4]} 32... Ne5 {[%clk 0:00:35.7]} 33. Be4 {[%clk 0:00:17.6]}
33... Ra2 {[%clk 0:00:29.7]} 34. Rc7 {[%clk 0:00:15.3]} 34... Rxa4 {[%clk
0:00:30]} 35. Bd5 {[%clk 0:00:15.6]} 35... Kf6 {[%clk 0:00:28.3]} 36. e4 {[%clk
0:00:15.2]} 36... Rb4 {[%clk 0:00:22.8]} 37. Rxa7 {[%clk 0:00:14.2]} 37... Rxb5
{[%clk 0:00:23.2]} 38. g4 {[%clk 0:00:14.6]} 38... h6 {[%clk 0:00:22.4]} 39. Kg2
{[%clk 0:00:13.4]} 39... Rb2+ {[%clk 0:00:20.6]} 40. Kg3 {[%clk 0:00:13.3]}
40... b5 {[%clk 0:00:16.1]} 41. Ra6+ {[%clk 0:00:10.6]} 41... Kg7 {[%clk
0:00:16]} 42. Kf4 {[%clk 0:00:10.7]} 42... Nd3+ {[%clk 0:00:12.6]} 43. Ke3
{[%clk 0:00:10.6]} 43... Ne5 {[%clk 0:00:13.1]} 44. Kf4 {[%clk 0:00:10]} 44...
f6 {[%clk 0:00:13.1]} 45. Ra7+ {[%clk 0:00:09.8]} 45... Kf8 {[%clk 0:00:12.9]}
46. Ra8+ {[%clk 0:00:08.8]} 46... Ke7 {[%clk 0:00:12.6]} 47. Ra7+ {[%clk
0:00:07.9]} 47... Kd6 {[%clk 0:00:11.3]} 48. Ra6+ {[%clk 0:00:08.4]} 48... Ke7
{[%clk 0:00:10.4]} 49. Ra7+ {[%clk 0:00:08]} 49... Nd7 {[%clk 0:00:10.6]} 50.
Bc6 {[%clk 0:00:05.4]} 50... Rd2 {[%clk 0:00:11]} 51. Bxb5 {[%clk 0:00:05.7]}
51... Ke6 {[%clk 0:00:11.1]} 52. Bc4+ {[%clk 0:00:04.9]} 52... Ke7 {[%clk
0:00:11]} 53. Bb5 {[%clk 0:00:04.7]} 53... Ke6 {[%clk 0:00:09.8]} 54. Bxd7+
{[%clk 0:00:04.8]} 54... Rxd7 {[%clk 0:00:09.3]} 55. Rxd7 {[%clk 0:00:05.4]}
55... Kxd7 {[%clk 0:00:10.2]} 56. e5 {[%clk 0:00:05.6]} 56... Ke6 {[%clk
0:00:10.9]} 57. exf6 {[%clk 0:00:06]} 57... Kxf6 {[%clk 0:00:11.6]} 58. g5+
{[%clk 0:00:05.5]} 58... hxg5+ {[%clk 0:00:09.7]} 59. hxg5+ {[%clk 0:00:06.4]}
59... Kf7 {[%clk 0:00:09.4]} 60. Ke5 {[%clk 0:00:04.6]} 60... Ke7 {[%clk
0:00:10.1]} 61. Kd5 {[%clk 0:00:05.3]} 61... Kd7 {[%clk 0:00:10.8]} 62. Ke5
{[%clk 0:00:05.8]} 62... Ke7 {[%clk 0:00:11.5]} 63. Kd5 {[%clk 0:00:06.3]} 63...
Kd7 {[%clk 0:00:12.1]} 64. Ke5 {[%clk 0:00:06]} 64... Ke7 {[%clk 0:00:13]}
1/2-1/2

[Event "Early-Titled-Tuesday-Blitz-February-13-2024"]
[Site "Chess.com"]
[Date "2024.02.13"]
[Round "1"]
[White "AlexandraSamaganova"]
[Black "M1711"]
[Result "1-0"]
[WhiteElo "2343"]
[BlackElo "2642"]
[TimeControl "180+1"]
[EndTime "8:08:35 PST"]
[Termination "AlexandraSamaganova won by checkmate"]

1. c4 {[%clk 0:03:00.9]} 1... Nf6 {[%clk 0:02:59.9]} 2. Nc3 {[%clk 0:03:00.3]}
2... c6 {[%clk 0:03:00.2]} 3. Nf3 {[%clk 0:02:56.4]} 3... d5 {[%clk 0:03:00]} 4.
e3 {[%clk 0:02:56.2]} 4... e6 {[%clk 0:02:57.8]} 5. d4 {[%clk 0:02:54.6]} 5...
Bd6 {[%clk 0:02:57.7]} 6. Bd3 {[%clk 0:02:54.9]} 6... O-O {[%clk 0:02:57.2]} 7.
O-O {[%clk 0:02:55.1]} 7... dxc4 {[%clk 0:02:56.6]} 8. Bxc4 {[%clk 0:02:54.3]}
8... Nbd7 {[%clk 0:02:57.5]} 9. a3 {[%clk 0:02:48.9]} 9... e5 {[%clk 0:02:57]}
10. dxe5 {[%clk 0:02:38.4]} 10... Nxe5 {[%clk 0:02:57.9]} 11. Nxe5 {[%clk
0:02:38.7]} 11... Bxe5 {[%clk 0:02:58.7]} 12. Be2 {[%clk 0:02:14.7]} 12... Qc7
{[%clk 0:02:53.2]} 13. h3 {[%clk 0:02:12.5]} 13... Bf5 {[%clk 0:02:45.2]} 14.
Qa4 {[%clk 0:02:09.7]} 14... Rfd8 {[%clk 0:02:41.5]} 15. Bf3 {[%clk 0:01:40.3]}
15... b5 {[%clk 0:02:30]} 16. Qh4 {[%clk 0:01:33.6]} 16... Bd3 {[%clk
0:02:16.7]} 17. Re1 {[%clk 0:01:31.2]} 17... a5 {[%clk 0:01:54.1]} 18. Be4
{[%clk 0:01:06.5]} 18... Bxc3 {[%clk 0:01:40.4]} 19. bxc3 {[%clk 0:00:55.3]}
19... Bxe4 {[%clk 0:01:38.4]} 20. f3 {[%clk 0:00:55.5]} 20... Bd3 {[%clk
0:01:34.2]} 21. e4 {[%clk 0:00:55.4]} 21... Nd7 {[%clk 0:01:28.6]} 22. Bf4
{[%clk 0:00:53.9]} 22... Qb7 {[%clk 0:01:23.7]} 23. Rad1 {[%clk 0:00:52.1]}
23... Nb6 {[%clk 0:01:23.6]} 24. Re3 {[%clk 0:00:48.5]} 24... Qa7 {[%clk
0:00:42.6]} 25. Rexd3 {[%clk 0:00:41.4]} 25... Rxd3 {[%clk 0:00:41.4]} 26. Rxd3
{[%clk 0:00:39.7]} 26... f6 {[%clk 0:00:38.5]} 27. Be3 {[%clk 0:00:37.4]} 27...
Qc7 {[%clk 0:00:37]} 28. Qg4 {[%clk 0:00:33.3]} 28... Nc4 {[%clk 0:00:35.4]} 29.
Rd7 {[%clk 0:00:29.8]} 29... Qxd7 {[%clk 0:00:35.3]} 30. Qxd7 {[%clk 0:00:29]}
30... Nxe3 {[%clk 0:00:35.5]} 31. Qxc6 {[%clk 0:00:22.7]} 31... Rd8 {[%clk
0:00:35.7]} 32. Kf2 {[%clk 0:00:13.7]} 32... Nc4 {[%clk 0:00:28.5]} 33. Qxb5
{[%clk 0:00:12.5]} 33... Rc8 {[%clk 0:00:21]} 34. Qd5+ {[%clk 0:00:10]} 34...
Kf8 {[%clk 0:00:20.6]} 35. f4 {[%clk 0:00:08.2]} 35... Ke7 {[%clk 0:00:17.2]}
36. e5 {[%clk 0:00:08.3]} 36... fxe5 {[%clk 0:00:17.5]} 37. fxe5 {[%clk
0:00:08.4]} 37... Rc7 {[%clk 0:00:08.1]} 38. Qg8 {[%clk 0:00:07.4]} 38... Nxe5
{[%clk 0:00:06.5]} 39. Qxg7+ {[%clk 0:00:07.3]} 39... Kd6 {[%clk 0:00:06.4]} 40.
Qf6+ {[%clk 0:00:05.2]} 40... Kd5 {[%clk 0:00:07]} 41. Qh4 {[%clk 0:00:04.2]}
41... Rxc3 {[%clk 0:00:06.3]} 42. Qxh7 {[%clk 0:00:04]} 42... Rxa3 {[%clk
0:00:05.8]} 43. Qb7+ {[%clk 0:00:03.9]} 43... Kd4 {[%clk 0:00:02.8]} 44. Qb6+
{[%clk 0:00:03.4]} 44... Kc4 {[%clk 0:00:01.9]} 45. Qc7+ {[%clk 0:00:02.8]}
45... Kd5 {[%clk 0:00:01.9]} 46. Qd8+ {[%clk 0:00:02.4]} 46... Kc4 {[%clk
0:00:01.8]} 47. Qc8+ {[%clk 0:00:02.3]} 47... Kd5 {[%clk 0:00:02]} 48. Qg8+
{[%clk 0:00:02.2]} 48... Kd4 {[%clk 0:00:01.8]} 49. Qd8+ {[%clk 0:00:02.1]}
49... Ke4 {[%clk 0:00:01.3]} 50. g4 {[%clk 0:00:02.5]} 50... Ra2+ {[%clk
0:00:01.4]} 51. Kf1 {[%clk 0:00:02]} 51... Ra3 {[%clk 0:00:02.3]} 52. Qa8+
{[%clk 0:00:01.9]} 52... Kf4 {[%clk 0:00:02.3]} 53. Qf8+ {[%clk 0:00:02]} 53...
Ke3 {[%clk 0:00:02.7]} 54. Qxa3+ {[%clk 0:00:02.9]} 54... Kf4 {[%clk 0:00:02.1]}
55. Qxa5 {[%clk 0:00:03.3]} 55... Nc4 {[%clk 0:00:02.5]} 56. Qb4 {[%clk
0:00:03.5]} 56... Ke3 {[%clk 0:00:02.9]} 57. Qxc4 {[%clk 0:00:04.4]} 57... Kf3
{[%clk 0:00:03.7]} 58. Qe2+ {[%clk 0:00:04.7]} 58... Kg3 {[%clk 0:00:04.6]} 59.
Qg2+ {[%clk 0:00:05]} 59... Kh4 {[%clk 0:00:05.1]} 60. g5 {[%clk 0:00:05.4]}
60... Kh5 {[%clk 0:00:05.5]} 61. g6 {[%clk 0:00:05.9]} 61... Kh6 {[%clk
0:00:06.4]} 62. g7 {[%clk 0:00:06.3]} 62... Kh5 {[%clk 0:00:07.2]} 63. g8=Q
{[%clk 0:00:06.6]} 63... Kh6 {[%clk 0:00:08.1]} 64. Q8g6# {[%clk 0:00:07.1]} 1-0